[Event "Late-Titled-Tuesday-Blitz-February-13-2024"]
[Site "Chess.com"]
[Date "2024.02.13"]
[Round "3"]
[White "MetiForce"]
[Black "colegiodemadrid"]
[Result "1-0"]
[WhiteElo "2863"]
[BlackElo "2568"]
[TimeControl "180+1"]
[EndTime "14:25:01 PST"]
[Termination "MetiForce won by resignation"]

1. d4 {[%clk 0:02:55.7]} 1... Nf6 {[%clk 0:02:56.4]} 2. c4 {[%clk 0:02:53.8]}
2... c6 {[%clk 0:02:56.6]} 3. Nf3 {[%clk 0:02:53.5]} 3... d5 {[%clk 0:02:57]} 4.
e3 {[%clk 0:02:52.4]} 4... a6 {[%clk 0:02:57.2]} 5. Nbd2 {[%clk 0:02:52.2]} 5...
Bf5 {[%clk 0:02:56.2]} 6. Be2 {[%clk 0:02:48.7]} 6... h6 {[%clk 0:02:52.5]} 7.
O-O {[%clk 0:02:44.6]} 7... e6 {[%clk 0:02:43.3]} 8. Ne5 {[%clk 0:02:25.8]} 8...
Nbd7 {[%clk 0:02:40.2]} 9. f4 {[%clk 0:02:25.6]} 9... Be7 {[%clk 0:02:30.3]} 10.
c5 {[%clk 0:02:25.4]} 10... Nxe5 {[%clk 0:02:27.4]} 11. fxe5 {[%clk 0:02:25.3]}
11... Nd7 {[%clk 0:02:27.9]} 12. Bg4 {[%clk 0:02:21.5]} 12... Bg6 {[%clk
0:02:25.3]} 13. Bh5 {[%clk 0:02:11.3]} 13... Bxh5 {[%clk 0:02:25.1]} 14. Qxh5
{[%clk 0:02:12.2]} 14... O-O {[%clk 0:02:25.4]} 15. e4 {[%clk 0:02:09]} 15... b6
{[%clk 0:02:23.1]} 16. exd5 {[%clk 0:02:07.5]} 16... cxd5 {[%clk 0:02:20.4]} 17.
cxb6 {[%clk 0:02:04.7]} 17... Qxb6 {[%clk 0:02:19.7]} 18. Nf3 {[%clk 0:02:05]}
18... Rfc8 {[%clk 0:02:14.2]} 19. Kh1 {[%clk 0:02:01.5]} 19... Bf8 {[%clk
0:02:03.6]} 20. Ng5 {[%clk 0:01:48]} 20... g6 {[%clk 0:01:42.8]} 21. Qf3 {[%clk
0:01:47.3]} 21... f5 {[%clk 0:01:30.8]} 22. exf6 {[%clk 0:01:45.6]} 22... hxg5
{[%clk 0:01:30.5]} 23. f7+ {[%clk 0:01:45.8]} 23... Kg7 {[%clk 0:01:26.9]} 24.
Bxg5 {[%clk 0:01:46]} 24... Qxd4 {[%clk 0:01:23]} 25. Qh3 {[%clk 0:01:45.9]} 1-0

[Event "Late-Titled-Tuesday-Blitz-February-13-2024"]
[Site "Chess.com"]
[Date "2024.02.13"]
[Round "3"]
[White "Sanyura"]
[Black "DonJuan_34"]
[Result "0-1"]
[WhiteElo "2647"]
[BlackElo "2484"]
[TimeControl "180+1"]
[EndTime "14:25:06 PST"]
[Termination "DonJuan_34 won by resignation"]

1. Nf3 {[%clk 0:02:23.8]} 1... Nf6 {[%clk 0:02:59.7]} 2. g3 {[%clk 0:02:24.7]}
2... g6 {[%clk 0:02:59.9]} 3. Bg2 {[%clk 0:02:22.6]} 3... Bg7 {[%clk 0:02:59.5]}
4. O-O {[%clk 0:02:23.5]} 4... O-O {[%clk 0:02:59.3]} 5. d3 {[%clk 0:02:24.4]}
5... d6 {[%clk 0:02:55.9]} 6. Nbd2 {[%clk 0:02:25.3]} 6... Nbd7 {[%clk
0:02:53.4]} 7. e4 {[%clk 0:02:24.6]} 7... e5 {[%clk 0:02:42.6]} 8. Nh4 {[%clk
0:02:17.9]} 8... c6 {[%clk 0:02:39]} 9. f4 {[%clk 0:02:11.8]} 9... exf4 {[%clk
0:02:31.2]} 10. gxf4 {[%clk 0:02:07.5]} 10... Nxe4 {[%clk 0:02:20.9]} 11. Nxe4
{[%clk 0:02:06.1]} 11... Qxh4 {[%clk 0:02:15.4]} 12. Nxd6 {[%clk 0:02:03.7]}
12... Nf6 {[%clk 0:01:55.9]} 13. Nxc8 {[%clk 0:02:02.8]} 13... Raxc8 {[%clk
0:01:54.7]} 14. f5 {[%clk 0:02:02.4]} 14... Rce8 {[%clk 0:01:41.2]} 15. Bf4
{[%clk 0:01:53.6]} 15... Nd5 {[%clk 0:01:35]} 16. Bg3 {[%clk 0:01:51.1]} 16...
Qd8 {[%clk 0:01:27.7]} 17. c3 {[%clk 0:01:47.3]} 17... Ne3 {[%clk 0:01:26.3]}
18. Qd2 {[%clk 0:01:46.3]} 18... Nxf1 {[%clk 0:01:22.5]} 19. Rxf1 {[%clk
0:01:47.2]} 19... gxf5 {[%clk 0:01:16.7]} 20. Rxf5 {[%clk 0:01:40.3]} 20... Re6
{[%clk 0:01:16.9]} 21. Be4 {[%clk 0:01:35.9]} 21... Rxe4 {[%clk 0:01:12]} 0-1

[Event "Late-Titled-Tuesday-Blitz-February-13-2024"]
[Site "Chess.com"]
[Date "2024.02.13"]
[Round "3"]
[White "PolandHussars"]
[Black "vladoboch"]
[Result "1-0"]
[WhiteElo "2615"]
[BlackElo "2419"]
[TimeControl "180+1"]
[EndTime "14:25:15 PST"]
[Termination "PolandHussars won on time"]

1. e4 {[%clk 0:03:00.9]} 1... e5 {[%clk 0:02:58.9]} 2. Nc3 {[%clk 0:02:56.5]}
2... Nc6 {[%clk 0:02:56]} 3. g3 {[%clk 0:02:56.4]} 3... Bc5 {[%clk 0:02:54.8]}
4. Bg2 {[%clk 0:02:55]} 4... d6 {[%clk 0:02:55.2]} 5. Nge2 {[%clk 0:02:54.4]}
5... Nf6 {[%clk 0:02:55.4]} 6. O-O {[%clk 0:02:53.4]} 6... O-O {[%clk
0:02:55.8]} 7. h3 {[%clk 0:02:53.6]} 7... Be6 {[%clk 0:02:56.1]} 8. Na4 {[%clk
0:02:53.4]} 8... Bb6 {[%clk 0:02:52.6]} 9. Nxb6 {[%clk 0:02:51.4]} 9... axb6
{[%clk 0:02:53.5]} 10. d4 {[%clk 0:02:52.1]} 10... exd4 {[%clk 0:02:53.2]} 11.
Nxd4 {[%clk 0:02:53]} 11... Nxd4 {[%clk 0:02:53.6]} 12. Qxd4 {[%clk 0:02:52.2]}
12... Re8 {[%clk 0:02:54.3]} 13. f4 {[%clk 0:02:48.5]} 13... Qd7 {[%clk
0:02:54.2]} 14. f5 {[%clk 0:02:45.8]} 14... Ra4 {[%clk 0:02:50.5]} 15. fxe6
{[%clk 0:02:36.7]} 15... Rxe6 {[%clk 0:02:50.6]} 16. c4 {[%clk 0:02:33.5]} 16...
b5 {[%clk 0:02:44.6]} 17. b3 {[%clk 0:02:32.2]} 17... Ra8 {[%clk 0:02:40.9]} 18.
Bb2 {[%clk 0:02:28.1]} 18... bxc4 {[%clk 0:02:38.1]} 19. Qxc4 {[%clk 0:02:25.3]}
19... Rae8 {[%clk 0:02:35.5]} 20. Bxf6 {[%clk 0:02:24.5]} 1-0

[Event "Late-Titled-Tuesday-Blitz-February-13-2024"]
[Site "Chess.com"]
[Date "2024.02.13"]
[Round "3"]
[White "djano"]
[Black "Jamal-Jamal-Jamal"]
[Result "1-0"]
[WhiteElo "2665"]
[BlackElo "2265"]
[TimeControl "180+1"]
[EndTime "14:25:20 PST"]
[Termination "djano won by resignation"]

1. e4 {[%clk 0:03:00.9]} 1... e6 {[%clk 0:03:00.3]} 2. b3 {[%clk 0:03:00.3]}
2... d5 {[%clk 0:03:00.6]} 3. Bb2 {[%clk 0:03:00.9]} 3... dxe4 {[%clk
0:02:59.6]} 4. Nc3 {[%clk 0:03:00.9]} 4... Nf6 {[%clk 0:02:58.6]} 5. Qe2 {[%clk
0:03:01.4]} 5... Be7 {[%clk 0:02:57.6]} 6. O-O-O {[%clk 0:03:00.9]} 6... O-O
{[%clk 0:02:57.9]} 7. Nxe4 {[%clk 0:03:01.2]} 7... Nbd7 {[%clk 0:02:56.1]} 8.
Nf3 {[%clk 0:02:54.8]} 8... Nxe4 {[%clk 0:02:50.6]} 9. Qxe4 {[%clk 0:02:55.7]}
9... Nf6 {[%clk 0:02:51.1]} 10. Qf4 {[%clk 0:02:50.1]} 10... a5 {[%clk
0:02:43.6]} 11. a4 {[%clk 0:02:48.4]} 11... Nd5 {[%clk 0:02:33.2]} 12. Qg3
{[%clk 0:02:47.5]} 12... Bf6 {[%clk 0:02:33.7]} 13. Ne5 {[%clk 0:02:47.9]} 13...
c6 {[%clk 0:02:27]} 14. h4 {[%clk 0:02:40.8]} 14... Ne7 {[%clk 0:02:09]} 15. Bd3
{[%clk 0:02:37.1]} 15... Nf5 {[%clk 0:02:08.4]} 16. Qf4 {[%clk 0:02:32.5]} 16...
Bd7 {[%clk 0:01:11.8]} 17. g4 {[%clk 0:02:29.3]} 17... Nxh4 {[%clk 0:01:12]} 18.
Nxd7 {[%clk 0:02:25.9]} 18... Bg5 {[%clk 0:00:13.5]} 19. Qe4 {[%clk 0:02:21.6]}
19... Ng6 {[%clk 0:00:05.1]} 20. Nxf8 {[%clk 0:02:19.6]} 20... Qxf8 {[%clk
0:00:02]} 21. Rh5 {[%clk 0:02:19.7]} 21... b5 {[%clk 0:00:02.9]} 22. Rxg5 {[%clk
0:02:17.3]} 22... bxa4 {[%clk 0:00:03.8]} 1-0

[Event "Late-Titled-Tuesday-Blitz-February-13-2024"]
[Site "Chess.com"]
[Date "2024.02.13"]
[Round "3"]
[White "ritanovikova"]
[Black "Artemiki"]
[Result "0-1"]
[WhiteElo "2217"]
[BlackElo "2437"]
[TimeControl "180+1"]
[EndTime "14:25:24 PST"]
[Termination "Artemiki won by resignation"]

1. e4 {[%clk 0:02:58.4]} 1... c5 {[%clk 0:02:55.2]} 2. Nc3 {[%clk 0:02:57.9]}
2... Nc6 {[%clk 0:02:53.9]} 3. d3 {[%clk 0:02:58.8]} 3... g6 {[%clk 0:02:54.1]}
4. g3 {[%clk 0:02:59.7]} 4... Bg7 {[%clk 0:02:53.7]} 5. Be3 {[%clk 0:03:00.6]}
5... d6 {[%clk 0:02:48]} 6. Qd2 {[%clk 0:02:57.8]} 6... e6 {[%clk 0:02:44]} 7.
Bg2 {[%clk 0:02:57]} 7... Nge7 {[%clk 0:02:44]} 8. Bh6 {[%clk 0:02:56.5]} 8...
Bf6 {[%clk 0:02:22]} 9. h4 {[%clk 0:02:55.9]} 9... Rb8 {[%clk 0:02:18.4]} 10. h5
{[%clk 0:02:55.7]} 10... b5 {[%clk 0:02:15.5]} 11. hxg6 {[%clk 0:02:53.9]} 11...
hxg6 {[%clk 0:02:09.6]} 12. Bg5 {[%clk 0:02:51.3]} 12... Rxh1 {[%clk 0:02:05.7]}
13. Bxh1 {[%clk 0:02:52.2]} 13... Bg7 {[%clk 0:02:04.3]} 14. Bh6 {[%clk
0:02:50.9]} 14... Bh8 {[%clk 0:02:00.2]} 15. Qg5 {[%clk 0:02:38.4]} 15... Qa5
{[%clk 0:01:51.3]} 16. Qh4 {[%clk 0:02:32.3]} 16... Bxc3+ {[%clk 0:01:45.6]} 17.
bxc3 {[%clk 0:02:24.2]} 17... Qxc3+ {[%clk 0:01:45.9]} 18. Ke2 {[%clk
0:02:22.5]} 18... Qxa1 {[%clk 0:01:43.8]} 19. Be3 {[%clk 0:02:19.5]} 19... Qxg1
{[%clk 0:01:38]} 20. Bf3 {[%clk 0:02:12]} 20... Nd4+ {[%clk 0:01:32.4]} 21. Bxd4
{[%clk 0:02:11.7]} 21... cxd4 {[%clk 0:01:32.1]} 22. Qh8+ {[%clk 0:02:11.4]}
22... Kd7 {[%clk 0:01:31.3]} 23. Qxd4 {[%clk 0:02:11.8]} 23... Bb7 {[%clk
0:01:25.1]} 24. Qxa7 {[%clk 0:02:08.5]} 24... Nc6 {[%clk 0:01:23.3]} 25. Qb6
{[%clk 0:02:01.1]} 25... Qc1 {[%clk 0:01:19.7]} 26. e5 {[%clk 0:01:49.2]} 26...
Qxc2+ {[%clk 0:01:17.9]} 27. Ke1 {[%clk 0:01:46.5]} 27... Qc1+ {[%clk
0:01:09.8]} 28. Ke2 {[%clk 0:01:44]} 28... Nd4+ {[%clk 0:01:09.8]} 0-1

[Event "Late-Titled-Tuesday-Blitz-February-13-2024"]
[Site "Chess.com"]
[Date "2024.02.13"]
[Round "3"]
[White "HandKnit"]
[Black "szefru"]
[Result "1-0"]
[WhiteElo "2511"]
[BlackElo "2250"]
[TimeControl "180+1"]
[EndTime "14:25:31 PST"]
[Termination "HandKnit won by resignation"]

1. c4 {[%clk 0:03:00.9]} 1... Nf6 {[%clk 0:02:38.1]} 2. Nf3 {[%clk 0:02:59.7]}
2... g6 {[%clk 0:02:37.8]} 3. g3 {[%clk 0:02:59.8]} 3... Bg7 {[%clk 0:02:37]} 4.
Bg2 {[%clk 0:03:00.4]} 4... O-O {[%clk 0:02:36.8]} 5. O-O {[%clk 0:03:00.8]}
5... c6 {[%clk 0:02:35.8]} 6. Qc2 {[%clk 0:02:46.1]} 6... d5 {[%clk 0:02:33.4]}
7. b3 {[%clk 0:02:46.4]} 7... Bf5 {[%clk 0:02:26.1]} 8. d3 {[%clk 0:02:46.3]}
8... dxc4 {[%clk 0:02:25.9]} 9. bxc4 {[%clk 0:02:43.5]} 9... Qd7 {[%clk
0:02:18.8]} 10. Rd1 {[%clk 0:02:37.6]} 10... Na6 {[%clk 0:02:18]} 11. Bb2 {[%clk
0:02:34]} 11... Bh3 {[%clk 0:02:10.6]} 12. Bh1 {[%clk 0:02:33.4]} 12... Ng4
{[%clk 0:02:00.9]} 13. Bxg7 {[%clk 0:02:31.7]} 13... Kxg7 {[%clk 0:02:01.1]} 14.
Nbd2 {[%clk 0:02:26.6]} 14... Rad8 {[%clk 0:01:47.7]} 15. Ng5 {[%clk 0:02:19.3]}
15... Nf6 {[%clk 0:01:34.7]} 16. Nxh3 {[%clk 0:02:18.6]} 16... Qxh3 {[%clk
0:01:34.6]} 17. Bg2 {[%clk 0:02:18.9]} 17... Qh5 {[%clk 0:01:32.5]} 18. Nf3
{[%clk 0:02:14.6]} 18... e5 {[%clk 0:01:28.8]} 19. Qb2 {[%clk 0:02:10.2]} 19...
e4 {[%clk 0:01:22]} 20. dxe4 {[%clk 0:02:01.1]} 20... Nc5 {[%clk 0:01:21.2]} 21.
e5 {[%clk 0:01:57]} 21... Rxd1+ {[%clk 0:01:12.4]} 22. Rxd1 {[%clk 0:01:57.9]}
22... Ng4 {[%clk 0:01:07]} 23. h3 {[%clk 0:01:49]} 23... Nh6 {[%clk 0:01:02.9]}
24. g4 {[%clk 0:01:48.3]} 24... Nxg4 {[%clk 0:00:59.6]} 25. hxg4 {[%clk
0:01:49.2]} 25... Qxg4 {[%clk 0:00:59.9]} 26. e6+ {[%clk 0:01:46.6]} 26... Kg8
{[%clk 0:00:49.2]} 27. e7 {[%clk 0:01:44.9]} 27... Re8 {[%clk 0:00:42.8]} 28.
Rd8 {[%clk 0:01:43.1]} 1-0

[Event "Late-Titled-Tuesday-Blitz-February-13-2024"]
[Site "Chess.com"]
[Date "2024.02.13"]
[Round "3"]
[White "klimkoj"]
[Black "Yurovskykh_Oleksandr"]
[Result "1-0"]
[WhiteElo "2924"]
[BlackElo "2690"]
[TimeControl "180+1"]
[EndTime "14:25:40 PST"]
[Termination "klimkoj won by checkmate"]

1. c4 {[%clk 0:03:00.9]} 1... c6 {[%clk 0:02:59.6]} 2. Nf3 {[%clk 0:03:00]} 2...
d5 {[%clk 0:02:53.7]} 3. e3 {[%clk 0:02:59.9]} 3... Nf6 {[%clk 0:02:51.9]} 4.
Nc3 {[%clk 0:03:00]} 4... e6 {[%clk 0:02:51.5]} 5. b3 {[%clk 0:02:58.9]} 5...
Bd6 {[%clk 0:02:50.1]} 6. Bb2 {[%clk 0:02:58.7]} 6... O-O {[%clk 0:02:50.8]} 7.
d4 {[%clk 0:02:58.8]} 7... Nbd7 {[%clk 0:02:50.1]} 8. Be2 {[%clk 0:02:58.6]}
8... b6 {[%clk 0:02:50.4]} 9. O-O {[%clk 0:02:58.5]} 9... Bb7 {[%clk 0:02:50.9]}
10. Qc2 {[%clk 0:02:57.4]} 10... Rc8 {[%clk 0:02:50]} 11. e4 {[%clk 0:02:55.3]}
11... dxe4 {[%clk 0:02:42.2]} 12. Nxe4 {[%clk 0:02:56.2]} 12... Nxe4 {[%clk
0:02:39.6]} 13. Qxe4 {[%clk 0:02:57.1]} 13... Qc7 {[%clk 0:02:37.8]} 14. Bd3
{[%clk 0:02:53.6]} 14... g6 {[%clk 0:02:28.7]} 15. Qh4 {[%clk 0:02:50]} 15...
Rfe8 {[%clk 0:02:06.4]} 16. Ng5 {[%clk 0:02:41.2]} 16... Nf8 {[%clk 0:02:05.6]}
17. Rfe1 {[%clk 0:02:35.8]} 17... c5 {[%clk 0:01:25.4]} 18. dxc5 {[%clk
0:02:18.5]} 18... Qxc5 {[%clk 0:01:05.6]} 19. Be4 {[%clk 0:02:08.9]} 19... Qc7
{[%clk 0:00:38]} 20. Bxb7 {[%clk 0:02:06.7]} 20... Qxb7 {[%clk 0:00:38.9]} 21.
Ne4 {[%clk 0:02:07.2]} 21... Be7 {[%clk 0:00:16.2]} 22. Nf6+ {[%clk 0:02:06]}
22... Bxf6 {[%clk 0:00:14]} 23. Qxf6 {[%clk 0:02:06.9]} 23... e5 {[%clk
0:00:14.6]} 24. Rxe5 {[%clk 0:02:06.1]} 24... Rc6 {[%clk 0:00:12.3]} 25. Re6
{[%clk 0:02:01.9]} 25... Rcxe6 {[%clk 0:00:08.9]} 26. Qh8# {[%clk 0:02:02]} 1-0

[Event "Late-Titled-Tuesday-Blitz-February-13-2024"]
[Site "Chess.com"]
[Date "2024.02.13"]
[Round "3"]
[White "Fandorine"]
[Black "ukchessbomber"]
[Result "1-0"]
[WhiteElo "2954"]
[BlackElo "2597"]
[TimeControl "180+1"]
[EndTime "14:25:46 PST"]
[Termination "Fandorine won by resignation"]

1. d4 {[%clk 0:03:00.9]} 1... b6 {[%clk 0:03:00.9]} 2. e4 {[%clk 0:02:59.4]}
2... Bb7 {[%clk 0:03:01.8]} 3. Bd3 {[%clk 0:02:59.5]} 3... e6 {[%clk 0:03:02.3]}
4. Nf3 {[%clk 0:02:58.7]} 4... d6 {[%clk 0:03:02.3]} 5. c4 {[%clk 0:02:57.6]}
5... Nd7 {[%clk 0:03:03.2]} 6. Nc3 {[%clk 0:02:56.1]} 6... g6 {[%clk 0:03:03.4]}
7. O-O {[%clk 0:02:56.6]} 7... Bg7 {[%clk 0:03:03.5]} 8. Re1 {[%clk 0:02:56.8]}
8... Ne7 {[%clk 0:03:02.2]} 9. h4 {[%clk 0:02:55.2]} 9... h6 {[%clk 0:03:01.4]}
10. Be3 {[%clk 0:02:54.1]} 10... O-O {[%clk 0:03:00.2]} 11. Qd2 {[%clk
0:02:53.6]} 11... Kh7 {[%clk 0:03:00.9]} 12. Rad1 {[%clk 0:02:53.8]} 12... e5
{[%clk 0:03:00.5]} 13. d5 {[%clk 0:02:53.7]} 13... f5 {[%clk 0:03:00.7]} 14.
exf5 {[%clk 0:02:49.1]} 14... gxf5 {[%clk 0:02:40.4]} 15. g4 {[%clk 0:02:24.4]}
15... e4 {[%clk 0:02:05.4]} 16. Nxe4 {[%clk 0:02:20.6]} 16... fxe4 {[%clk
0:02:05.8]} 17. Bxe4+ {[%clk 0:02:21.2]} 17... Kh8 {[%clk 0:02:06.4]} 18. Bxh6
{[%clk 0:02:21.4]} 18... Ng8 {[%clk 0:02:06.6]} 19. Bxg7+ {[%clk 0:02:18.3]}
19... Kxg7 {[%clk 0:02:06.7]} 20. Ng5 {[%clk 0:02:18.9]} 20... Kh8 {[%clk
0:00:45.7]} 21. Bf5 {[%clk 0:01:58.8]} 21... Ne5 {[%clk 0:00:24.7]} 22. f4
{[%clk 0:01:44.1]} 22... Qxg5 {[%clk 0:00:24.5]} 23. hxg5 {[%clk 0:01:44.3]}
23... Nf3+ {[%clk 0:00:24.6]} 24. Kf2 {[%clk 0:01:44.4]} 24... Nxd2 {[%clk
0:00:18]} 25. Rh1+ {[%clk 0:01:44.8]} 1-0

[Event "Late-Titled-Tuesday-Blitz-February-13-2024"]
[Site "Chess.com"]
[Date "2024.02.13"]
[Round "3"]
[White "Flawless_Fighter"]
[Black "VitorBronson"]
[Result "1-0"]
[WhiteElo "2738"]
[BlackElo "2505"]
[TimeControl "180+1"]
[EndTime "14:25:53 PST"]
[Termination "Flawless_Fighter won by resignation"]

1. e4 {[%clk 0:03:00.9]} 1... c5 {[%clk 0:02:59.2]} 2. Nf3 {[%clk 0:03:00.9]}
2... d6 {[%clk 0:02:59.2]} 3. Bb5+ {[%clk 0:03:01]} 3... Nd7 {[%clk 0:02:59.2]}
4. O-O {[%clk 0:03:00.9]} 4... a6 {[%clk 0:02:59.4]} 5. Bd3 {[%clk 0:03:00.3]}
5... Ngf6 {[%clk 0:02:55.3]} 6. Re1 {[%clk 0:03:00.6]} 6... e6 {[%clk
0:02:54.9]} 7. Bf1 {[%clk 0:03:00.8]} 7... b6 {[%clk 0:02:52.6]} 8. c4 {[%clk
0:02:59]} 8... Bb7 {[%clk 0:02:52.5]} 9. Nc3 {[%clk 0:02:59.7]} 9... Be7 {[%clk
0:02:40.8]} 10. d4 {[%clk 0:03:00]} 10... cxd4 {[%clk 0:02:39.9]} 11. Nxd4
{[%clk 0:03:00.9]} 11... O-O {[%clk 0:02:39]} 12. f3 {[%clk 0:03:00.1]} 12...
Qc7 {[%clk 0:02:39.2]} 13. Be3 {[%clk 0:02:54.7]} 13... Rfe8 {[%clk 0:02:38.4]}
14. Rc1 {[%clk 0:02:54.6]} 14... Rac8 {[%clk 0:02:38]} 15. b3 {[%clk 0:02:54.3]}
15... Qb8 {[%clk 0:02:38.4]} 16. Bf2 {[%clk 0:02:50]} 16... Qa8 {[%clk
0:02:38.7]} 17. a4 {[%clk 0:02:48.2]} 17... Bd8 {[%clk 0:02:32.2]} 18. Qd2
{[%clk 0:02:42.6]} 18... Bc7 {[%clk 0:02:30.1]} 19. Bg3 {[%clk 0:02:38.8]} 19...
Nh5 {[%clk 0:02:25.2]} 20. Bf2 {[%clk 0:02:32]} 20... Nhf6 {[%clk 0:02:20.8]}
21. Kh1 {[%clk 0:02:22.6]} 21... d5 {[%clk 0:02:12.7]} 22. exd5 {[%clk
0:02:21.7]} 22... exd5 {[%clk 0:02:13.6]} 23. Nf5 {[%clk 0:02:21.5]} 23... Ne5
{[%clk 0:01:51.5]} 24. cxd5 {[%clk 0:02:00.7]} 24... Nxd5 {[%clk 0:01:45.4]} 25.
Nxd5 {[%clk 0:02:00]} 25... Bxd5 {[%clk 0:01:46.3]} 26. Qg5 {[%clk 0:01:50.2]}
1-0

[Event "Late-Titled-Tuesday-Blitz-February-13-2024"]
[Site "Chess.com"]
[Date "2024.02.13"]
[Round "3"]
[White "a-z30"]
[Black "boguszp"]
[Result "1-0"]
[WhiteElo "2308"]
[BlackElo "2006"]
[TimeControl "180+1"]
[EndTime "14:25:55 PST"]
[Termination "a-z30 won by checkmate"]

1. d3 {[%clk 0:03:00.9]} 1... d5 {[%clk 0:02:58.5]} 2. Nf3 {[%clk 0:03:01.8]}
2... Nf6 {[%clk 0:02:57.5]} 3. g3 {[%clk 0:03:02.7]} 3... Bf5 {[%clk 0:02:57]}
4. Bg2 {[%clk 0:03:03.6]} 4... e6 {[%clk 0:02:56.7]} 5. O-O {[%clk 0:03:04.5]}
5... h6 {[%clk 0:02:56.5]} 6. c4 {[%clk 0:03:05.3]} 6... c6 {[%clk 0:02:55.6]}
7. cxd5 {[%clk 0:03:06.2]} 7... exd5 {[%clk 0:02:55.1]} 8. Nc3 {[%clk
0:03:07.1]} 8... Bd6 {[%clk 0:02:53.6]} 9. e4 {[%clk 0:03:07.2]} 9... Be6 {[%clk
0:02:48.5]} 10. e5 {[%clk 0:03:05.8]} 10... O-O {[%clk 0:02:31]} 11. exd6 {[%clk
0:03:03.1]} 11... Qxd6 {[%clk 0:02:30.8]} 12. Bf4 {[%clk 0:03:03]} 12... Qb4
{[%clk 0:02:30.2]} 13. Qb3 {[%clk 0:03:02.3]} 13... Qxb3 {[%clk 0:02:25.7]} 14.
axb3 {[%clk 0:03:01.6]} 14... Bf5 {[%clk 0:02:24.7]} 15. d4 {[%clk 0:02:57.8]}
15... Nbd7 {[%clk 0:02:19.5]} 16. Ne5 {[%clk 0:02:57.9]} 16... Bc2 {[%clk
0:02:14.7]} 17. Nxd7 {[%clk 0:02:55.6]} 17... Nxd7 {[%clk 0:02:13.4]} 18. b4
{[%clk 0:02:56.5]} 18... a6 {[%clk 0:02:09.6]} 19. Na4 {[%clk 0:02:55.7]} 19...
Rfe8 {[%clk 0:02:04]} 20. Bf3 {[%clk 0:02:54.7]} 20... Re6 {[%clk 0:01:59.8]}
21. Nc5 {[%clk 0:02:53.6]} 21... Nxc5 {[%clk 0:01:58.6]} 22. bxc5 {[%clk
0:02:52.8]} 22... Rae8 {[%clk 0:01:57.2]} 23. Be3 {[%clk 0:02:52.3]} 23... f5
{[%clk 0:01:53.1]} 24. Rfe1 {[%clk 0:02:48.8]} 24... g5 {[%clk 0:01:53.3]} 25.
Bd2 {[%clk 0:02:47.7]} 25... Kg7 {[%clk 0:01:40.5]} 26. Rxe6 {[%clk 0:02:46.1]}
26... Rxe6 {[%clk 0:01:39.5]} 27. Re1 {[%clk 0:02:47]} 27... Rxe1+ {[%clk
0:01:38.9]} 28. Bxe1 {[%clk 0:02:46.8]} 28... Kf6 {[%clk 0:01:38.3]} 29. Be2
{[%clk 0:02:45.8]} 29... f4 {[%clk 0:01:32.3]} 30. f3 {[%clk 0:02:45.6]} 30...
h5 {[%clk 0:01:20.9]} 31. Kf2 {[%clk 0:02:45]} 31... Kf5 {[%clk 0:01:18]} 32.
Bf1 {[%clk 0:02:44.4]} 32... g4 {[%clk 0:01:15.4]} 33. Bd2 {[%clk 0:02:43.6]}
33... Bb1 {[%clk 0:01:11.4]} 34. Bxf4 {[%clk 0:02:41.7]} 34... gxf3 {[%clk
0:01:09.8]} 35. Bh3+ {[%clk 0:02:40.1]} 35... Ke4 {[%clk 0:01:09]} 36. Be5
{[%clk 0:02:39.7]} 36... a5 {[%clk 0:01:05]} 37. Bc8 {[%clk 0:02:38.9]} 37...
Bd3 {[%clk 0:01:02]} 38. Bxb7 {[%clk 0:02:38]} 38... Bb5 {[%clk 0:01:01.7]} 39.
h3 {[%clk 0:02:36.9]} 39... a4 {[%clk 0:01:01]} 40. g4 {[%clk 0:02:34.8]} 40...
hxg4 {[%clk 0:01:00.6]} 41. hxg4 {[%clk 0:02:35.7]} 41... Kd3 {[%clk 0:00:56.4]}
42. g5 {[%clk 0:02:34.9]} 42... Kc2 {[%clk 0:00:56.1]} 43. g6 {[%clk 0:02:31.6]}
43... Bd3 {[%clk 0:00:53.7]} 44. g7 {[%clk 0:02:30.8]} 44... Bh7 {[%clk
0:00:53.1]} 45. Bxc6 {[%clk 0:02:30.1]} 45... Kxb2 {[%clk 0:00:49]} 46. Bxd5
{[%clk 0:02:28.1]} 46... a3 {[%clk 0:00:47.3]} 47. g8=Q {[%clk 0:02:29]} 47...
Bxg8 {[%clk 0:00:45.9]} 48. Bxg8 {[%clk 0:02:28.9]} 48... a2 {[%clk 0:00:46.1]}
49. Bxa2 {[%clk 0:02:27.3]} 49... Kxa2 {[%clk 0:00:45.9]} 50. c6 {[%clk
0:02:28.2]} 50... Kb3 {[%clk 0:00:45.9]} 51. c7 {[%clk 0:02:29.1]} 51... Kc4
{[%clk 0:00:46.1]} 52. c8=Q+ {[%clk 0:02:30]} 52... Kd5 {[%clk 0:00:45.7]} 53.
Qd7+ {[%clk 0:02:29.5]} 53... Ke4 {[%clk 0:00:45.5]} 54. Qc6+ {[%clk 0:02:29.7]}
54... Kd3 {[%clk 0:00:44.6]} 55. d5 {[%clk 0:02:30.6]} 55... Ke4 {[%clk
0:00:44]} 56. d6+ {[%clk 0:02:30.7]} 56... Kxe5 {[%clk 0:00:44.5]} 57. d7 {[%clk
0:02:30]} 57... Kf5 {[%clk 0:00:42.8]} 58. d8=Q {[%clk 0:02:29.2]} 58... Kg4
{[%clk 0:00:41.5]} 59. Qe4+ {[%clk 0:02:28.2]} 59... Kh3 {[%clk 0:00:40.5]} 60.
Qdh4# {[%clk 0:02:27]} 1-0